[Event "Asian Zonal 3.2 Women 2019"]
[Site "Dhaka"]
[Date "2019.03.21"]
[Round "7.9"]
[White "Sultana, Sharmin Shirin"]
[Black "Parveen, Seyda Shabana"]
[Result "1/2-1/2"]
[ECO "E61"]
[WhiteElo "1981"]
[BlackElo "2073"]
[Annotator "NA RC"]
[PlyCount "206"]
[EventDate "2019.03.14"]
[EventType "swiss"]
[EventCountry "BAN"]
[SourceTitle "playchess.com"]
[Source "ChessBase"]
[SourceQuality "1"]
[TimeControl "5400+30"]

{[%evp 8,157,0,3,20,-16,37,18,58,30,60,41,59,72,71,74,78,64,71,76,79,70,77,56,61,70,87,32767,91,89,94,109,139,118,127,110,170,164,231,135,158,147,377,401,372,403,437,424,407,441,448,429,472,511,506,445,463,0,373,376,522,491,472,289,289,270,297,285,391,291,733,329,324,343,354,293,342,313,377,524,518,604,360,308,287,300,300,229,241,278,494,32767,32767,32767,32767,32767,300,335,325,331,415,457,412,609,520,308,484,311,332,300,282,316,338,298,475,288,306,323,432,322,323,281,274,279,408,288,320,272,335,297,510,365,32767,32767,32767,32767,5065,29962,29974,29985,29984,29978,29982,29981,29980,29980,12817,29977,29949,5089,1947,7012]} 1. d4 {[%emt 0:04:54]} Nf6 {[%emt 0:00:00]} 2. Nf3 {[%emt 0:00:20]} d6 {[%emt 0:00:29]} 3. Bf4 {[%emt 0:05:09]} g6 {[%emt 0:03:40]} 4. e3 {[%emt 0:00:21]} Bg7 {[%emt 0:00:08]} 5. h3 {[%emt 0:00:26]} O-O {[%emt 0:01:18]} 6. c4 {[%emt 0:04:01]} c6 {[%emt 0:02:19]} 7. Nc3 {[%emt 0:01:44]} Nbd7 {[%emt 0:04:01]} 8. Be2 {[%emt 0:02:48]} h6 {[%emt 0:09:58] E61: King's Indian: Early deviations for White, including Smyslov System} 9. Bh2 $146 {[%emt 0:02:05]} ({Predecessor:} 9. O-O Nh7 10. Qd2 e5 11. Bh2 f5 12. Rad1 e4 13. Ne1 Ndf6 14. b4 d5 15. b5 Be6 16. bxc6 bxc6 17. Na4 {1-0 (47) Florescu,C (2273)-Vajda,L (2568) Mamaia 2015}) 9... b6 {[%emt 0:03:51]} 10. O-O {[%emt 0:03:57]} Bb7 {[%emt 0:03:25]} 11. Qc2 {[%emt 0:04:08]} Re8 {[%emt 0:00:55]} 12. Rfd1 {[%emt 0:00:42]} Qc8 {[%emt 0:06:00]} 13. Rac1 {[%emt 0:17:13]} a6 {[%emt 0:03:29]} 14. Qb1 {[%emt 0:07:35]} e5 {[%emt 0:14:43]} 15. dxe5 {[%emt 0:05:08]} dxe5 {[%emt 0:00:29]} 16. Nd2 {[%emt 0:03:09]} Re6 {[%emt 0:06:29]} 17. Nde4 {[%emt 0:09:48]} Ne8 {[%emt 0:09:05]} 18. c5 {[%emt 0:05:34]} b5 {[%emt 0:01:45]} 19. b4 {[%emt 0:00:49]} Bf8 {[%emt 0:04:37]} 20. Qb3 {[%emt 0:01:01]} Ndf6 {[%emt 0:00:52]} 21. Rd2 {[%emt 0:03:23]} Kg7 {[%emt 0:02:56]} (21... Qc7 $16) 22. Rcd1 {[%emt 0:00:13]} Qc7 {[%emt 0:07:43]} (22... a5 $16 23. a3 Be7) 23. Qb2 {[%emt 0:00:22]} Bc8 {[%emt 0:02:22]} 24. Bf3 {[%emt 0:05:35]} a5 $2 {[%emt 0:01:25]} (24... Kh7 {is a better defense.} 25. a3 Nxe4 26. Bxe4 (26. Nxe4 Ra7 $16) 26... Ra7) 25. Nxf6 {[%emt 0:02:36]} Nxf6 {[%emt 0:00:26] [#]} 26. Nxb5 $1 {[%emt 0:02:25] Pin} Qb7 {[%emt 0:03:34]} 27. Nd6 {[%emt 0:00:26]} Qxb4 {[%emt 0:02:37]} 28. Bxe5 {[%emt 0:02:12]} Qxb2 {[%emt 0:02:19]} 29. Bxb2 {[%emt 0:00:02]} ({Stronger than} 29. Rxb2 Rxe5 30. Bxc6 Ra7 $15) 29... h5 {[%emt 0:01:32]} 30. Bxc6 {[%emt 0:00:57]} Rb8 $1 $11 {[%emt 0:00:10] and Black stays safe.} 31. Ne8+ {[%emt 0:03:03]} (31. Bd5 Rxd6 32. cxd6 Bxd6) 31... Kh6 {[%emt 0:01:03]} 32. Nd6 $2 {[%emt 0:01:14]} ({Less strong is} 32. Nxf6 Rxc6 33. Be5 Rb5 $18) (32. Bxf6 $18 Rxc6 33. Rd8) 32... Bxd6 $4 {[%emt 0:00:30]} 33. cxd6 {[%emt 0:00:11]} Nd7 {[%emt 0:00:33]} 34. Bc3 {[%emt 0:01:28]} Rb6 {[%emt 0:00:31]} 35. Bxd7 {[%emt 0:00:46]} Bxd7 {[%emt 0:00:04]} 36. Bxa5 {[%emt 0:00:03]} Ra6 {[%emt 0:00:35]} 37. Bb4 {[%emt 0:00:18]} Re5 {[%emt 0:01:01]} 38. a3 {[%emt 0:00:18]} Rg5 $2 {[%emt 0:00:28]} (38... Rc6 39. Rd4 Kg7) 39. Kh2 {[%emt 0:00:17]} Rb5 {[%emt 0:00:17]} 40. Rc1 {[%emt 0:00:00]} Rb7 {[%emt 0:00:00]} 41. h4 {[%emt 0:00:00]} Kg7 {[%emt 0:00:00]} 42. e4 {[%emt 0:00:00]} Kf6 {[%emt 0:00:00]} 43. f4 {[%emt 0:00:00]} Ke6 {[%emt 0:00:00]} 44. Rc5 {[%emt 0:00:00]} f6 {[%emt 0:00:00]} 45. Rc3 {[%emt 0:00:00]} Ra8 {[%emt 0:00:00]} 46. Rc7 {[%emt 0:00:00]} Raa7 {[%emt 0:00:00]} 47. Rxb7 {[%emt 0:00:00]} Rxb7 {[%emt 0:00:00]} 48. Rc2 {[%emt 0:00:00]} Rb5 $2 {[%emt 0:00:00]} (48... Be8 49. Kg3 Bd7) 49. Kg3 {[%emt 0:00:00]} f5 {[%emt 0:00:00]} 50. Kf3 {[%emt 0:00:00]} fxe4+ {[%emt 0:00:00]} 51. Kxe4 {[%emt 0:00:00]} Kf7 {[%emt 0:01:17]} 52. Rc7 {[%emt 0:00:00]} Ke6 {[%emt 0:00:15]} 53. g3 {[%emt 0:00:00]} Rf5 {[%emt 0:00:32]} 54. a4 {[%emt 0:00:00]} Rf8 {[%emt 0:00:53]} 55. a5 {[%emt 0:00:13]} Rb8 {[%emt 0:00:22]} 56. Rc4 {[%emt 0:01:03]} (56. Bc5 $142 Rc8 57. a6 Rxc7 58. dxc7 Bc6+ 59. Kd4) 56... Bb5 {[%emt 0:01:18]} (56... Rc8 $142 57. Kd4 Rxc4+ 58. Kxc4 Bc6) 57. Rd4 {[%emt 0:00:36]} Bc6+ {[%emt 0:00:15]} 58. Kd3 {[%emt 0:02:47]} Kd7 {[%emt 0:00:03]} 59. Kc4 {[%emt 0:01:28]} Rc8 {[%emt 0:00:52]} 60. Bc5 {[%emt 0:00:49]} Re8 {[%emt 0:01:02]} (60... Ra8 $142 61. Bb6 Rc8) 61. Rd3 {[%emt 0:01:03]} Re4+ {[%emt 0:00:28]} 62. Kb3 {[%emt 0:00:34]} Re1 {[%emt 0:00:42]} (62... Bb7 $142 63. Kc3 Bc8) 63. Ba3 {[%emt 0:00:30]} Rb1+ {[%emt 0:00:37]} 64. Bb2 {[%emt 0:00:22]} Re1 {[%emt 0:00:35]} (64... Bb7) 65. Be5 {[%emt 0:00:56]} Re4 {[%emt 0:00:18]} (65... Rb1+ {might work better.}) 66. Rc3 {[%emt 0:00:35]} Ba4+ {[%emt 0:01:00]} 67. Kb2 {[%emt 0:00:30]} Bc6 {[%emt 0:00:55]} 68. a6 {[%emt 0:00:54]} Rb4+ {[%emt 0:00:56]} 69. Rb3 {[%emt 0:00:05]} Rxb3+ {[%emt 0:02:10]} 70. Kxb3 {[%emt 0:00:01]} Bb5 {[%emt 0:00:01]} 71. a7 {[%emt 0:00:11]} Bc6 {[%emt 0:00:02]} 72. Kb4 {[%emt 0:01:35]} Ba8 {[%emt 0:00:47]} 73. Kc5 {[%emt 0:01:11]} Bf3 {[%emt 0:00:17]} 74. Bc3 {[%emt 0:00:25]} Ba8 {[%emt 0:00:30]} 75. Bb4 {[%emt 0:00:05]} Bf3 {[%emt 0:00:21]} 76. Kd4 {[%emt 0:00:12]} Ke6 {[%emt 0:00:22]} 77. Bc5 {[%emt 0:01:12]} Ba8 {[%emt 0:00:14] [#]} 78. d7 $18 {[%emt 0:02:32]} Kxd7 {[%emt 0:00:03]} 79. Ke5 {[%emt 0:00:05]} Ke8 {[%emt 0:02:12]} 80. Kf6 {[%emt 0:00:01]} Be4 {[%emt 0:00:22]} 81. Bb4 {[%emt 0:00:23]} Kd7 {[%emt 0:01:15]} 82. a8=Q {[%emt 0:01:03]} Bxa8 {[%emt 0:00:03]} 83. Kxg6 {[%emt 0:00:01]} Bf3 {[%emt 0:00:38]} 84. f5 {[%emt 0:02:08]} Be4 {[%emt 0:00:35]} 85. Kf6 {[%emt 0:00:46]} Ke8 {[%emt 0:00:20]} 86. Ke6 {[%emt 0:00:34]} Bc2 {[%emt 0:00:35]} 87. Kf6 {[%emt 0:00:02]} Bd3 {[%emt 0:00:42]} 88. Kg6 {[%emt 0:00:03]} Be4 {[%emt 0:00:27]} 89. Kxh5 {[%emt 0:00:11]} Bxf5 {[%emt 0:00:03]} 90. Kg5 {[%emt 0:00:10]} Bd3 {[%emt 0:00:34]} 91. Kf6 {[%emt 0:00:29]} Be2 {[%emt 0:00:12]} 92. Kg6 {[%emt 0:00:07]} Bd3+ {[%emt 0:00:21]} 93. Kg5 {[%emt 0:00:46]} Kf7 {[%emt 0:00:15]} 94. Kh6 {[%emt 0:00:33]} Be2 {[%emt 0:00:47]} 95. Bc3 {[%emt 0:00:05]} Bd1 {[%emt 0:00:26]} 96. Kg5 {[%emt 0:00:35]} Be2 {[%emt 0:00:53]} 97. g4 {[%emt 0:00:20]} Bd1 {[%emt 0:00:39]} 98. h5 {[%emt 0:01:51]} Be2 {[%emt 0:01:01]} 99. Kh4 {[%emt 0:01:06]} Bd1 {[%emt 0:00:43]} 100. g5 {[%emt 0:00:07]} Bc2 {[%emt 0:00:30]} 101. Kg3 {[%emt 0:00:38]} Bd3 {[%emt 0:00:12]} 102. Kf4 {[%emt 0:00:30]} Bc2 {[%emt 0:00:05]} 103. Kg4 {[%emt 0:01:00]} Bd3 {[%emt 0:00:06]} 1/2-1/2

[Event "Asian Zonal 3.2 Women 2019"]
[Site "Dhaka"]
[Date "2019.03.21"]
[Round "7.10"]
[White "Noshin, Anjum"]
[Black "Sultana, Zakia"]
[Result "1-0"]
[ECO "C11"]
[WhiteElo "1722"]
[BlackElo "1826"]
[Annotator "NA RC"]
[PlyCount "87"]
[EventDate "2019.03.14"]
[EventType "swiss"]
[EventCountry "BAN"]
[SourceTitle "playchess.com"]
[Source "ChessBase"]
[SourceQuality "1"]
[TimeControl "5400+30"]

{[%evp 8,87,11,0,0,3,0,0,5,13,10,-104,0,0,0,0,45,44,59,-98,44,39,52,55,50,23,25,24,59,41,39,42,35,16,26,14,70,85,99,103,101,110,122,32767,152,147,233,228,354,371,596,653,746,995,794,771,754,708,658,706,714,734,1098,1208,1729,1195,1098,32767,32767,32767,32767,1473,1904,2154,32767,32767,32767,32767,32767,32767,32767,6427]} 1. e4 {[%emt 0:00:10]} e6 {[%emt 0:00:00]} 2. d4 {[%emt 0:00:20]} d5 {[%emt 0:00:12]} 3. Nc3 {[%emt 0:00:33]} Nf6 {[%emt 0:00:13]} 4. e5 {[%emt 0:00:11]} Nfd7 {[%emt 0:00:11]} 5. f4 {[%emt 0:00:26]} c5 {[%emt 0:00:10]} 6. Nf3 {[%emt 0:00:26]} Nc6 {[%emt 0:00:16]} 7. Be3 {[%emt 0:00:25]} Be7 {[%emt 0:00:49]} 8. Qd2 {[%emt 0:03:57]} O-O {[%emt 0:02:34]} 9. Qf2 {[%emt 0:05:13] [#] C11: French: Classical System: 4 e5 and 4 Bg5 dxe4} (9. dxc5 $11 Bxc5 (9... Qa5 10. a3 Bxc5 11. Bxc5 Nxc5 12. Bd3 Bd7 13. O-O Nxd3 14. cxd3 Rac8 15. Qf2 Qa6 16. Rad1 b5 17. f5 exf5 18. Nxd5 {1-0 (37) Anand,V (2773)-Christiansen,J (2555) St Petersburg 2018}) 10. O-O-O) 9... cxd4 $2 {[%emt 0:01:31]} ({Black should play} 9... f6 $1 $19 10. exf6 Nxf6) 10. Nxd4 {[%emt 0:00:31]} Nxd4 {[%emt 0:00:18]} 11. Bxd4 {[%emt 0:00:07]} f6 {[%emt 0:00:51]} 12. exf6 {[%emt 0:10:23]} Bxf6 {[%emt 0:00:41]} 13. Qe3 $2 $146 {[%emt 0:07:56] [#]} (13. O-O-O $1 $14 {stays ahead.}) ({Predecessor:} 13. Bxf6 Qxf6 14. g3 Ne5 15. O-O-O Bd7 16. Qe1 Nc6 {1-0 (34) Balinov,I (2448)-Frehen,W Oberwart 1999}) 13... Bxd4 {[%emt 0:03:52]} (13... e5 $1 $17 {[%cal Re5d4]} 14. fxe5 Nxe5) 14. Qxd4 {[%emt 0:00:07]} Qf6 {[%emt 0:00:21]} 15. Qxf6 {[%emt 0:00:23]} Nxf6 {[%emt 0:00:59]} 16. Bd3 {[%emt 0:09:11]} Bd7 {[%emt 0:01:34]} 17. O-O {[%emt 0:01:56]} Rac8 {[%emt 0:03:14]} 18. Rae1 {[%emt 0:03:34]} Rfe8 {[%emt 0:04:51]} 19. h3 {[%emt 0:05:00]} a6 {[%emt 0:01:22]} 20. Re5 {[%emt 0:09:37]} Bc6 {[%emt 0:02:55]} 21. Rfe1 {[%emt 0:10:56]} Kf7 {[%emt 0:02:16] [#]} (21... d4 $11 22. Ne2 Nd7) 22. Ne2 $1 {[%emt 0:04:39]} g6 {[%emt 0:04:21]} 23. Nd4 {[%emt 0:03:25]} Bd7 {[%emt 0:00:39]} 24. g3 {[%emt 0:05:22]} Nh5 {[%emt 0:08:18]} 25. Kf2 {[%emt 0:04:15]} Ng7 {[%emt 0:00:30]} 26. g4 {[%emt 0:02:42]} Bc6 {[%emt 0:06:10]} (26... Rf8 $16 {was necessary.} 27. Kf3 Kg8) 27. h4 {[%emt 0:04:36]} h5 {[%emt 0:09:19]} (27... Bd7 {was worth a try.} 28. h5 gxh5) 28. Rg5 {[%emt 0:00:29]} Re7 $2 {[%emt 0:08:35]} (28... hxg4 {was necessary.} 29. Bxg6+ Kf6 30. Bxe8 Bxe8) 29. Bxg6+ {[%emt 0:00:46] Double Attack} Kf8 {[%emt 0:02:17]} 30. gxh5 {[%emt 0:01:00]} Be8 {[%emt 0:01:31]} 31. h6 {[%emt 0:00:54]} Bxg6 {[%emt 0:00:55]} 32. hxg7+ {[%emt 0:00:20]} Kf7 {[%emt 0:01:31]} 33. f5 {[%emt 0:01:36]} Bh7 {[%emt 0:00:43]} 34. fxe6+ {[%emt 0:00:25]} Kf6 {[%emt 0:00:32]} 35. Re3 {[%emt 0:00:38]} Rec7 {[%emt 0:07:34]} 36. Rf3+ {[%emt 0:00:27]} Ke7 {[%emt 0:00:06]} 37. Rf7+ {[%emt 0:00:04]} Kd6 {[%emt 0:00:33]} 38. Rxc7 {[%emt 0:01:01]} Kxc7 {[%emt 0:00:07]} 39. Rxd5 {[%emt 0:00:39]} Re8 {[%emt 0:02:05]} 40. Rd7+ {[%emt 0:00:00]} Kc8 {[%emt 0:00:00]} 41. Rf7 {[%emt 0:00:00]} Bg8 {[%emt 0:00:00]} 42. Rf8 {[%emt 0:00:00]} Kd8 {[%emt 0:00:00]} 43. Rxe8+ {[%emt 0:00:00]} Kxe8 {[%emt 0:00:00]} 44. Nf5 $18 {[%emt 0:00:00]} 1-0

[Event "Asian Zonal 3.2 Women 2019"]
[Site "Dhaka"]
[Date "2019.03.21"]
[Round "7.11"]
[White "Khan, Nazrana"]
[Black "Parveen, Tanima"]
[Result "1/2-1/2"]
[ECO "D16"]
[WhiteElo "1948"]
[BlackElo "1990"]
[Annotator "NA RC"]
[PlyCount "66"]
[EventDate "2019.03.14"]
[EventType "swiss"]
[EventCountry "BAN"]
[SourceTitle "playchess.com"]
[Source "ChessBase"]
[SourceQuality "1"]
[TimeControl "5400+30"]

{[%evp 8,66,19,15,22,-7,-11,-6,-18,-34,-10,-22,-19,-16,0,-35,-27,-30,-24,-38,-11,-41,-22,-29,-25,-29,-35,-28,0,0,16,0,11,0,32767,32767,0,0,0,0,42,0,11,2,8,9,20,0,32767,0,67,32767,0,0,29,0,49,0,0,0,0]} 1. d4 {[%emt 0:05:20]} d5 {[%emt 0:00:00]} 2. c4 {[%emt 0:00:15]} c6 {[%emt 0:00:06]} 3. Nc3 {[%emt 0:00:51]} Nf6 {[%emt 0:00:11]} 4. Nf3 {[%emt 0:00:13]} dxc4 {[%emt 0:00:32]} 5. a4 {[%emt 0:00:31]} e6 {[%emt 0:00:47]} 6. Ne5 {[%emt 0:00:47] D16: Slav Defence: 5 a4: Lines with 5...Bg4 and 5...Na6} (6. e3 c5 7. Bxc4 cxd4 8. exd4 Nc6 9. O-O Be7 10. Bg5 O-O 11. Qd2 b6 12. d5 Na5 13. Ba2 Nxd5 14. Nxd5 exd5 15. Bxe7 Qxe7 16. b4 Nc4 17. Qxd5 {0-1 (79) Navara,D (2740)-Grandelius,N (2655) Porto Carras 2018}) 6... c5 {[%emt 0:01:58]} 7. e3 {[%emt 0:02:54]} cxd4 {[%emt 0:02:09]} 8. Qxd4 $146 {[%emt 0:01:07]} ({Predecessor:} 8. exd4 Be7 9. Bxc4 O-O 10. O-O Nc6 11. Nf3 Nb4 12. Qe2 Bd7 13. Rd1 Bc6 {½-½ (21) Wahlbom,M (2288)-Hjelm,N (2313) Sweden 2012}) 8... Qxd4 {[%emt 0:02:20]} 9. exd4 {[%emt 0:00:09]} Bb4 {[%emt 0:02:11]} 10. Bxc4 {[%emt 0:08:05]} Ne4 {[%emt 0:03:41]} 11. Bd2 {[%emt 0:04:15]} Nxd2 {[%emt 0:05:57]} 12. Kxd2 {[%emt 0:05:48]} O-O {[%emt 0:03:07]} 13. Rhd1 {[%emt 0:06:24]} Nd7 {[%emt 0:13:59]} 14. a5 {[%emt 0:09:41]} Nxe5 {[%emt 0:02:35]} 15. dxe5 {[%emt 0:00:41]} Bd7 {[%emt 0:01:30]} 16. Kc2 {[%emt 0:03:19]} Bc6 {[%emt 0:02:35]} 17. f3 {[%emt 0:01:15]} Rac8 {[%emt 0:04:05]} 18. Kb3 {[%emt 0:02:27]} Bxc3 {[%emt 0:09:55]} 19. bxc3 {[%emt 0:00:08]} Rfd8 {[%emt 0:04:58]} 20. Kb4 {[%emt 0:07:06]} Kf8 {[%emt 0:05:54]} 21. Bb3 {[%emt 0:07:57]} Ke7 {[%emt 0:04:15]} 22. c4 {[%emt 0:05:11]} f6 {[%emt 0:07:24]} 23. exf6+ {[%emt 0:06:14]} Kxf6 {[%emt 0:00:46]} 24. Bc2 {[%emt 0:03:10]} (24. c5 $14) 24... e5 {[%emt 0:03:22]} 25. h4 {[%emt 0:04:01]} ({Don't play} 25. Bxh7 g6 $17) 25... h6 {[%emt 0:01:56]} 26. c5 {[%emt 0:01:38]} a6 {[%emt 0:03:16]} 27. Bb3 {[%emt 0:05:11]} e4 {[%emt 0:01:36]} 28. fxe4 {[%emt 0:00:48]} Bxe4 {[%emt 0:00:11]} ({Black should try} 28... Rxd1 $11 29. Rxd1 Bxe4) 29. g3 {[%emt 0:02:09]} Ke5 {[%emt 0:01:17]} 30. Bc4 {[%emt 0:01:40]} g6 {[%emt 0:02:05]} 31. Rac1 {[%emt 0:00:25]} h5 {[%emt 0:02:45] [#]} 32. Ra1 {[%emt 0:02:24]} ({White should try} 32. Rf1 $1 $16 {[%cal Rf1f7]} Rf8 33. Rfe1) 32... Rxd1 {[%emt 0:05:25]} 33. Rxd1 {[%emt 0:00:18]} Rf8 $11 {[%emt 0:00:02]} 1/2-1/2

[Event "Asian Zonal 3.2 Women 2019"]
[Site "Dhaka"]
[Date "2019.03.21"]
[Round "7.12"]
[White "Kazi Zarin, Tasnim"]
[Black "Hamid, Rani"]
[Result "0-1"]
[ECO "B42"]
[WhiteElo "1567"]
[BlackElo "1941"]
[Annotator "NA RC"]
[PlyCount "110"]
[EventDate "2019.03.14"]
[EventType "swiss"]
[EventCountry "BAN"]
[SourceTitle "playchess.com"]
[Source "ChessBase"]
[SourceQuality "1"]
[TimeControl "5400+30"]

{[%evp 8,110,45,43,40,36,44,-7,-7,-15,-4,7,0,-15,-7,-31,-58,-46,-10,-26,-14,-76,-28,-28,-35,-39,-26,-16,45,-41,-36,-87,-52,-101,-85,-111,-72,-58,-41,-40,-31,-33,-29,-155,-132,-127,-122,-148,32767,32767,-156,-211,-151,-164,-168,-210,-165,-247,-226,-352,32767,-76,-60,-86,-84,-85,-75,-103,-123,-123,-55,-112,-96,-115,-112,-137,-127,-152,-157,-152,-120,-108,0,-141,-15,-110,-106,-120,-131,-255,-264,32767,32767,32767,32767,-452,-492,-737,-956,-792,-710,-656,-804,-29997,-29998]} 1. e4 {[%emt 0:00:00]} c5 {[%emt 0:00:00]} 2. Nf3 {[%emt 0:00:00]} e6 {[%emt 0:00:04]} 3. d4 {[%emt 0:00:00]} cxd4 {[%emt 0:00:02]} 4. Nxd4 {[%emt 0:00:00]} a6 {[%emt 0:00:04]} 5. Bd3 {[%emt 0:00:13]} Nf6 {[%emt 0:00:07]} 6. O-O {[%emt 0:00:26]} Qc7 {[%emt 0:00:42]} 7. f4 {[%emt 0:01:00]} (7. Qe2 $14) 7... Bc5 {[%emt 0:00:57] B42: Sicilian: Kan Variation: 5 Bd3} 8. Be3 {[%emt 0:00:04]} Nc6 {[%emt 0:00:59]} 9. c3 {[%emt 0:00:08]} d6 {[%emt 0:00:21]} 10. Qe2 $146 {[%emt 0:02:43]} ({Predecessor:} 10. Nd2 e5 11. Nc2 exf4 12. Rxf4 Ne5 13. Nb3 Nfg4 14. Bd4 Be6 15. h3 Nxd3 16. Qxd3 {1-0 (57) Paehtz,E (2464)-Dzagnidze,N (2522) Huaian 2017}) 10... e5 {[%emt 0:03:05]} 11. Nb3 {[%emt 0:00:30]} Bxe3+ {[%emt 0:01:15]} 12. Qxe3 {[%emt 0:00:05]} exf4 {[%emt 0:00:18]} 13. Qxf4 {[%emt 0:02:22]} Ne5 {[%emt 0:00:15]} 14. Be2 {[%emt 0:02:11] [#]} (14. Bc2 $11) 14... O-O {[%emt 0:04:34]} (14... Qb6+ $1 $17 15. Kh1 Ng6) 15. N1d2 {[%emt 0:01:32]} b5 {[%emt 0:03:02]} 16. Kh1 {[%emt 0:01:38]} Be6 {[%emt 0:03:04]} 17. Nd4 {[%emt 0:01:39]} Rac8 {[%emt 0:00:14]} (17... Bd7 $15) 18. Nf5 {[%emt 0:02:01]} (18. Qg3 $11 Qe7 19. a4) 18... Bxf5 {[%emt 0:00:49]} 19. Qxf5 {[%emt 0:00:48]} Rfe8 {[%emt 0:01:00]} 20. Rf2 {[%emt 0:12:37]} Qc5 {[%emt 0:07:08]} 21. Raf1 {[%emt 0:07:19]} Qe3 {[%emt 0:02:34]} 22. Bd1 {[%emt 0:03:47]} a5 {[%emt 0:05:49]} 23. Re2 {[%emt 0:01:44]} Qb6 {[%emt 0:04:48]} 24. Nf3 {[%emt 0:12:57]} Nxf3 {[%emt 0:01:25]} 25. Rxf3 {[%emt 0:00:35]} (25. gxf3 $11 Rc5 26. Qf4) 25... Rc5 {[%emt 0:00:27]} 26. Qf4 {[%emt 0:00:36]} Rce5 {[%emt 0:00:49]} 27. Bc2 {[%emt 0:10:30]} d5 {[%emt 0:15:21]} 28. Rfe3 {[%emt 0:02:30]} h6 {[%emt 0:07:39]} 29. Qf3 {[%emt 0:12:42]} (29. Qh4 $17) 29... Qc5 {[%emt 0:01:05]} 30. Re1 {[%emt 0:02:41]} Qe7 {[%emt 0:04:27]} 31. Qe2 {[%emt 0:01:57]} (31. R3e2 $17 {was necessary.}) 31... dxe4 {[%emt 0:06:17]} 32. c4 {[%emt 0:09:52]} (32. h3 $142) 32... bxc4 {[%emt 0:00:56]} 33. Qxc4 {[%emt 0:00:07]} (33. h3 $142) 33... Qb4 {[%emt 0:06:45]} 34. Qxb4 {[%emt 0:02:54]} axb4 {[%emt 0:00:03]} 35. h3 {[%emt 0:00:07]} Kf8 {[%emt 0:00:54]} 36. Kg1 {[%emt 0:02:26]} Rd8 {[%emt 0:01:00]} 37. R1e2 {[%emt 0:02:02]} Rd4 {[%emt 0:00:42]} 38. Kf2 {[%emt 0:00:38]} Rf5+ {[%emt 0:01:20]} 39. Kg3 {[%emt 0:00:53]} Rg5+ {[%emt 0:01:27]} 40. Kf2 {[%emt 0:00:00]} Re5 {[%emt 0:00:00]} 41. Ke1 {[%emt 0:00:00]} Ke7 {[%emt 0:00:00]} 42. Kf1 {[%emt 0:00:00]} Kd6 {[%emt 0:00:00]} 43. Kf2 {[%emt 0:00:00]} g5 {[%emt 0:00:00]} 44. g4 {[%emt 0:00:00]} Rc4 {[%emt 0:00:00]} (44... h5 $17 45. gxh5 g4) 45. Kg1 {[%emt 0:00:00]} (45. Bb3 $11 {remains equal.} Rd4 46. Bxf7) 45... Re6 {[%emt 0:00:00]} (45... h5 $17 46. gxh5 Nxh5 47. Rxe4 Rexe4 48. Bxe4 Nf4 {[%mdl 64] Double Attack} 49. Rd2+ Ke5) 46. Kf2 {[%emt 0:00:00]} (46. Bb3 $11 {keeps the balance.} Rc1+ 47. Kf2) 46... Rd4 {[%emt 0:00:00]} 47. Ke1 {[%emt 0:00:00]} Re7 {[%emt 0:00:00]} 48. Kf1 {[%emt 0:00:00] [#]} (48. a3 $17 {was necessary.}) 48... h5 $1 {[%emt 0:00:00]} 49. gxh5 {[%emt 0:00:00]} Nxh5 {[%emt 0:00:00]} 50. Rg2 {[%emt 0:00:00]} f6 51. Rg4 {[%emt 0:00:00]} Nf4 {[%emt 0:00:00]} 52. Ke1 {[%emt 0:00:21]} Ke5 {[%emt 0:00:00]} 53. Rgg3 {[%emt 0:03:12]} Rh7 {[%emt 0:00:00]} 54. a3 {[%emt 0:02:46]} Rc7 $19 {[%emt 0:00:00]} 55. Bb3 {[%emt 0:00:59]} Rc1+ {[%emt 0:00:00]} 0-1